[Event "Irish Championship 2020"]
[Site "Dublin"]
[Date "2020.08.02"]
[Round "2.7"]
[White "Collins, Adam"]
[Black "Putar, Leon"]
[Result "1/2-1/2"]
[ECO "C00"]
[WhiteElo "1760"]
[BlackElo "1894"]
[Annotator "NA"]
[PlyCount "62"]
[EventDate "2020.08.01"]
[EventType "swiss"]
[EventCountry "IRL"]
[SourceTitle "playchess.com"]
[Source "ChessBase"]
[SourceQuality "1"]
[TimeControl "8100+35"]

{[%evp 8,62,-8,-8,0,-33,0,0,0,0,80,63,81,70,116,78,139,135,145,47,71,32767,64,40,31,32,70,16,32767,-19,33,-88,-76,-76,32767,32767,32767,32767,32767,32767,32767,32767,32767,32767,-75,-114,32767,32767,-91,-89,-74,-83,0,32767,0,-19,-6]} 1. e4 {[%emt 0:00:00]} e6 {[%emt 0:00:00]} 2. b3 {[%emt 0:00:45]} d5 {[%emt 0:01:07]} 3. Bb2 {[%emt 0:00:11]} dxe4 {[%emt 0:06:16]} 4. Nc3 {[%emt 0:00:04]} Nf6 {[%emt 0:00:31]} 5. Qe2 {[%emt 0:00:05]} Be7 {[%emt 0:02:39]} 6. O-O-O {[%emt 0:04:00]} c5 {[%emt 0:03:14] C00: French: Unusual White 2nd moves.} 7. Nxe4 {[%emt 0:04:43]} Nc6 {[%emt 0:02:41]} 8. Nf3 {[%emt 0:05:48]} Nxe4 {[%emt 0:13:15]} (8... Bd7 $11 {keeps the balance.}) 9. Qxe4 {[%emt 0:00:08]} Bf6 {[%emt 0:00:14]} 10. d4 {[%emt 0:08:38] [#]} Qa5 $146 {[%emt 0:08:32]} ({Predecessor:} 10... Qb6 11. d5 Bxb2+ 12. Kxb2 Ne7 13. dxe6 Bxe6 14. Ne5 O-O 15. Nd7 Bxd7 16. Rxd7 Qf6+ {1-0 (27) Singh,G (2293)-Walton,A (2158) Edinburgh 2003}) 11. Kb1 {[%emt 0:06:25]} Nb4 {[%emt 0:11:40]} (11... Bd7 $14) 12. a3 {[%emt 0:05:14]} Nd5 {[%emt 0:02:37]} 13. Qd3 {[%emt 0:12:04]} (13. Ne5 $16) 13... Bd7 {[%emt 0:12:32]} 14. c4 {[%emt 0:16:20]} Nb6 {[%emt 0:05:35]} 15. Ka2 {[%emt 0:27:08]} cxd4 {[%emt 0:09:47]} 16. Bxd4 {[%emt 0:08:50]} Be7 {[%emt 0:20:14]} 17. b4 {[%emt 0:22:24]} Qa4 {[%emt 0:09:12]} 18. Bc5 {[%emt 0:06:18]} Bf6 {[%emt 0:09:14]} (18... Bc6 $15 19. Bxe7 Kxe7) 19. b5 {[%emt 0:04:19]} (19. Rc1 $11) 19... Bxb5 {[%emt 0:07:01]} 20. cxb5 {[%emt 0:04:55]} Rd8 {[%emt 0:00:04]} 21. Nd4 {[%emt 0:01:54]} Rd5 {[%emt 0:01:03]} 22. Bxb6 {[%emt 0:04:17]} axb6 {[%emt 0:00:25]} 23. Qb3 {[%emt 0:00:15]} Qxb3+ {[%emt 0:00:57]} 24. Kxb3 {[%emt 0:00:07]} Rxd4 {[%emt 0:00:13]} 25. Be2 {[%emt 0:00:42]} Ke7 {[%emt 0:01:15]} 26. Bf3 {[%emt 0:02:15]} Rhd8 {[%emt 0:01:04]} 27. Rxd4 {[%emt 0:00:12]} Rxd4 {[%emt 0:00:15]} 28. Rd1 $17 {[%emt 0:00:08]} Kd6 {[%emt 0:01:16]} 29. a4 {[%emt 0:00:52]} Kc5 {[%emt 0:00:48]} (29... Be5 $17 30. g3 g6) 30. Rc1+ {[%emt 0:00:24]} Kd6 {[%emt 0:00:43]} 31. Bxb7 {[%emt 0:01:01]} Kd7 {[%emt 0:18:41]} 1/2-1/2

[Event "Irish Championship 2020"]
[Site "Dublin"]
[Date "2020.08.04"]
[Round "4.8"]
[White "Venkatesan, Kavin"]
[Black "Jackson, Carl"]
[Result "1-0"]
[ECO "A40"]
[WhiteElo "1946"]
[BlackElo "2021"]
[Annotator "RC"]
[PlyCount "65"]
[EventDate "2020.08.01"]
[EventType "swiss"]
[EventCountry "IRL"]
[SourceTitle "playchess.com"]
[Source "ChessBase"]
[SourceQuality "1"]
[TimeControl "8100+35"]

1. d4 {[%emt 0:00:00]} e6 {[%emt 0:00:00]} 2. c4 {[%emt 0:00:11]} b6 {[%emt 0:00:00]} 3. e4 {[%emt 0:08:24]} Bb7 {[%emt 0:00:14]} 4. Bd3 {[%emt 0:00:48]} Bb4+ {[%emt 0:00:16]} 5. Nc3 {[%emt 0:01:48]} f5 {[%emt 0:00:26]} 6. Qh5+ {[%emt 0:07:46]} g6 {[%emt 0:00:14]} 7. Qe2 {[%emt 0:00:05]} Nf6 {[%emt 0:00:53]} 8. Bg5 {[%emt 0:04:08]} O-O {[%emt 0:01:08]} 9. f3 {[%emt 0:07:10]} Be7 {[%emt 0:01:01]} 10. Bh6 {[%emt 0:31:38]} Re8 {[%emt 0:06:02]} 11. Qd2 {[%emt 0:03:26]} Nc6 {[%emt 0:03:57]} 12. Nge2 {[%emt 0:01:13]} Nb4 {[%emt 0:05:34]} 13. O-O {[%emt 0:04:54]} c5 {[%emt 0:14:47]} 14. d5 {[%emt 0:07:07]} Nxd3 {[%emt 0:05:54]} 15. Qxd3 {[%emt 0:00:12]} fxe4 {[%emt 0:00:30]} 16. fxe4 {[%emt 0:06:15]} Ng4 {[%emt 0:19:29]} 17. Bf4 {[%emt 0:01:59]} e5 {[%emt 0:07:17]} 18. h3 {[%emt 0:13:01]} exf4 {[%emt 0:04:01]} 19. hxg4 {[%emt 0:00:09]} g5 {[%emt 0:05:10]} 20. Rf3 {[%emt 0:02:32]} Bf6 {[%emt 0:08:28]} 21. Rh3 {[%emt 0:09:39]} Be5 {[%emt 0:05:58]} 22. Kf2 {[%emt 0:00:49]} Qf6 {[%emt 0:05:33]} 23. Rah1 {[%emt 0:03:36]} Re7 {[%emt 0:04:14]} 24. Rh6 {[%emt 0:01:46]} Bd4+ {[%emt 0:19:01]} 25. Nxd4 {[%emt 0:00:41]} Qxd4+ {[%emt 0:00:05]} 26. Qxd4 {[%emt 0:00:08]} cxd4 {[%emt 0:00:05]} 27. Nb5 {[%emt 0:00:21]} Rc8 {[%emt 0:12:21]} 28. Nd6 {[%emt 0:00:30]} Rc7 {[%emt 0:00:10]} 29. R1h5 {[%emt 0:00:48]} Ba6 {[%emt 0:01:06]} 30. Rxg5+ {[%emt 0:00:29]} Kh8 {[%emt 0:00:07]} 31. Rf6 {[%emt 0:00:18]} h6 {[%emt 0:00:34]} 32. Rxh6+ {[%emt 0:00:05]} Rh7 {[%emt 0:00:02]} 33. Nf7# {[%emt 0:32:19]} 1-0

[Event "Irish Championship 2020"]
[Site "Dublin"]
[Date "2020.08.04"]
[Round "4.14"]
[White "McHugh, Kevin"]
[Black "Putar, Lara"]
[Result "0-1"]
[ECO "C06"]
[WhiteElo "2010"]
[BlackElo "1834"]
[Annotator "RC"]
[PlyCount "46"]
[EventDate "2020.08.01"]
[EventType "swiss"]
[EventCountry "IRL"]
[SourceTitle "playchess.com"]
[Source "ChessBase"]
[SourceQuality "1"]
[TimeControl "8100+35"]

1. e4 {[%emt 0:00:00]} e6 {[%emt 0:00:00]} 2. d4 {[%emt 0:00:00]} d5 {[%emt 0:00:00]} 3. Nd2 {[%emt 0:00:00]} Nf6 {[%emt 0:00:00]} 4. e5 {[%emt 0:00:00]} Nfd7 {[%emt 0:00:00]} 5. Bd3 {[%emt 0:00:00]} c5 {[%emt 0:00:01]} 6. c3 {[%emt 0:00:05]} Nc6 {[%emt 0:00:23]} 7. Ne2 {[%emt 0:00:44]} cxd4 {[%emt 0:00:33]} 8. cxd4 {[%emt 0:00:11]} f6 {[%emt 0:00:31]} 9. exf6 {[%emt 0:00:07]} Nxf6 {[%emt 0:00:11]} 10. Nf3 {[%emt 0:00:12]} Bd6 {[%emt 0:00:17]} 11. O-O {[%emt 0:00:10]} Qc7 {[%emt 0:00:12]} 12. Nc3 {[%emt 0:00:33]} a6 {[%emt 0:00:36]} 13. Bg5 {[%emt 0:00:12]} O-O {[%emt 0:00:23]} 14. Bh4 {[%emt 0:00:09]} Nh5 {[%emt 0:01:44]} 15. Rc1 {[%emt 0:08:55]} g6 {[%emt 0:05:36]} 16. Re1 {[%emt 0:07:17]} Qg7 {[%emt 0:07:44]} 17. Bb1 {[%emt 0:01:12]} Bd7 {[%emt 0:08:49]} 18. Na4 {[%emt 0:05:17]} Rxf3 {[%emt 0:20:52]} 19. Qxf3 {[%emt 0:02:38]} Qxd4 {[%emt 0:01:33]} 20. g4 {[%emt 0:01:05]} Qxa4 {[%emt 0:04:01]} 21. Bg5 {[%emt 0:00:23]} Ng7 {[%emt 0:03:06]} 22. b3 {[%emt 0:01:07]} Qb4 {[%emt 0:01:41]} 23. Bf6 {[%emt 0:00:43]} Qf4 {[%emt 1:30:12]} 0-1

[Event "Irish Championship 2020"]
[Site "Dublin"]
[Date "2020.08.05"]
[Round "5.14"]
[White "Putar, Leon"]
[Black "Byrne, Alex"]
[Result "1-0"]
[ECO "C19"]
[WhiteElo "1894"]
[BlackElo "1976"]
[Annotator "ChessBase"]
[PlyCount "133"]
[EventDate "2020.08.01"]
[EventType "swiss"]
[EventCountry "IRL"]
[SourceTitle "playchess.com"]
[Source "ChessBase"]
[SourceQuality "1"]
[TimeControl "8100+35"]

1. e4 {[%emt 0:00:00]} e6 {[%emt 0:02:53]} 2. d4 {[%emt 0:00:10]} d5 {[%emt 0:00:15]} 3. Nc3 {[%emt 0:00:08]} Bb4 {[%emt 0:00:06]} 4. e5 {[%emt 0:00:17]} c5 {[%emt 0:00:01]} 5. a3 {[%emt 0:00:30]} Bxc3+ {[%emt 0:00:02]} 6. bxc3 {[%emt 0:00:12]} Ne7 {[%emt 0:00:01]} 7. Nf3 {[%emt 0:00:32]} b6 {[%emt 0:05:20]} 8. Bd3 {[%emt 0:04:49]} Ba6 {[%emt 0:00:51]} 9. O-O {[%emt 0:01:30]} h6 {[%emt 0:12:27]} 10. a4 {[%emt 0:04:06]} c4 {[%emt 0:14:37]} 11. Be2 {[%emt 0:02:27]} Nbc6 {[%emt 0:00:06]} 12. Ba3 {[%emt 0:07:06]} Qd7 {[%emt 0:00:49]} 13. h3 {[%emt 0:07:49]} O-O-O {[%emt 0:02:22]} 14. a5 {[%emt 0:06:54]} b5 {[%emt 0:01:14]} 15. Qd2 {[%emt 0:04:55]} g5 {[%emt 0:17:06]} 16. Nh2 {[%emt 0:02:49]} Ng6 {[%emt 0:31:24]} 17. Ng4 {[%emt 0:07:04]} Nce7 {[%emt 0:07:16]} 18. Nf6 {[%emt 0:05:29]} Qc7 {[%emt 0:00:40]} 19. Bh5 {[%emt 0:01:18]} Ng8 {[%emt 0:02:39]} 20. g3 {[%emt 0:02:42]} Nxf6 {[%emt 0:03:01]} 21. exf6 {[%emt 0:00:45]} Rhg8 {[%emt 0:02:08]} 22. Bc5 {[%emt 0:05:30]} Rde8 {[%emt 0:12:39]} 23. Qe3 {[%emt 0:06:44]} Nf4 {[%emt 0:03:28]} 24. Bf3 {[%emt 0:05:23]} Nxh3+ {[%emt 0:07:18]} 25. Kh2 {[%emt 0:00:34]} g4 {[%emt 0:01:18]} 26. Bxg4 {[%emt 0:01:06]} Nxf2 {[%emt 0:01:27]} 27. Rxf2 {[%emt 0:03:30]} Rxg4 {[%emt 0:00:36]} 28. Rf4 {[%emt 0:00:08]} Rg5 {[%emt 0:01:45]} 29. Be7 {[%emt 0:06:04]} Reg8 {[%emt 0:05:51]} 30. Rf3 {[%emt 0:15:04]} Bb7 {[%emt 0:02:01]} 31. a6 {[%emt 0:00:42]} Bc6 {[%emt 0:01:12]} 32. Rg1 {[%emt 0:01:15]} e5 {[%emt 0:01:19]} 33. dxe5 {[%emt 0:00:13]} Rxe5 {[%emt 0:04:55]} 34. Qd4 {[%emt 0:01:50]} Re4 {[%emt 0:00:24]} 35. Qf2 {[%emt 0:05:48]} Rg5 {[%emt 0:03:29]} 36. Rf5 {[%emt 0:03:20]} d4 {[%emt 0:01:21]} 37. Rg2 {[%emt 0:04:23]} Rxf5 {[%emt 0:01:28]} 38. Qxf5+ {[%emt 0:00:09]} Qd7 {[%emt 0:00:12]} 39. Qxd7+ {[%emt 0:16:01]} Kxd7 {[%emt 0:00:02]} 40. Rd2 {[%emt 0:00:11]} Ke6 {[%emt 0:01:01]} 41. cxd4 {[%emt 0:00:27]} c3 {[%emt 0:01:06]} 42. Rf2 {[%emt 0:02:14]} Rxd4 {[%emt 0:00:37]} 43. Bc5 {[%emt 0:00:48]} Rd1 {[%emt 0:00:06]} 44. g4 {[%emt 0:00:10]} Rd2 {[%emt 0:01:01]} 45. Bxa7 {[%emt 0:00:10]} Kd5 {[%emt 0:00:24]} 46. Kg3 {[%emt 0:00:33]} Rxf2 {[%emt 0:00:01]} 47. Kxf2 {[%emt 0:00:33]} Ke4 {[%emt 0:00:02]} 48. Be3 {[%emt 0:00:15]} Ke5 {[%emt 0:01:24]} 49. Bxh6 {[%emt 0:00:24]} Kxf6 {[%emt 0:00:11]} 50. Ke3 {[%emt 0:00:21]} Ke5 {[%emt 0:01:25]} 51. Bg7+ {[%emt 0:00:23]} Kd5 {[%emt 0:00:10]} 52. Bxc3 {[%emt 0:00:10]} Ba8 {[%emt 0:00:17]} 53. a7 {[%emt 0:01:06]} Bb7 {[%emt 0:00:04]} 54. Bb4 {[%emt 0:00:37]} Ba8 {[%emt 0:00:05]} 55. c3 {[%emt 0:00:09]} Bb7 {[%emt 0:00:07]} 56. g5 {[%emt 0:00:57]} Ba8 {[%emt 0:00:08]} 57. Kf4 {[%emt 0:00:21]} Ke6 {[%emt 0:01:20]} 58. Kg4 {[%emt 0:00:15]} Bd5 {[%emt 0:00:15]} 59. Kh5 {[%emt 0:00:29]} Bf3+ {[%emt 0:00:17]} 60. Kh6 {[%emt 0:00:10]} Bb7 {[%emt 0:00:15]} 61. Kg7 {[%emt 0:00:14]} Bd5 {[%emt 0:02:26]} 62. Kf8 {[%emt 0:00:46]} Kf5 {[%emt 0:01:48]} 63. Be7 {[%emt 0:00:14]} Ke6 {[%emt 0:00:01]} 64. Ke8 {[%emt 0:00:42]} Ba8 {[%emt 0:00:59]} 65. Kd8 {[%emt 0:00:12]} Be4 {[%emt 0:00:08]} 66. Bf6 {[%emt 0:00:18]} Kd6 {[%emt 0:01:49]} 67. Kc8 {[%emt 0:00:12]} 1-0

[Event "Irish Championship 2020"]
[Site "Dublin"]
[Date "2020.08.06"]
[Round "6.1"]
[White "Daly, Colm"]
[Black "Murray, David"]
[Result "1-0"]
[ECO "A34"]
[WhiteElo "2248"]
[BlackElo "2152"]
[Annotator "RC"]
[PlyCount "49"]
[EventDate "2020.08.01"]
[EventType "swiss"]
[EventCountry "IRL"]
[SourceTitle "playchess.com"]
[Source "ChessBase"]
[SourceQuality "1"]
[TimeControl "8100+35"]

1. Nf3 {[%emt 0:15:48]} Nf6 {[%emt 0:02:35]} 2. c4 {[%emt 0:00:12]} c5 {[%emt 0:00:10]} 3. Nc3 {[%emt 0:07:20]} Nc6 {[%emt 0:00:14]} 4. g3 {[%emt 0:00:10]} d5 {[%emt 0:02:07]} 5. d4 {[%emt 0:07:04]} cxd4 {[%emt 0:02:25]} 6. Nxd4 {[%emt 0:00:09]} e5 {[%emt 0:01:29]} 7. Nxc6 {[%emt 0:02:12]} bxc6 {[%emt 0:00:06]} 8. cxd5 {[%emt 0:04:18]} cxd5 {[%emt 0:03:49]} 9. Bg2 {[%emt 0:00:09]} Be6 {[%emt 0:01:09]} 10. O-O {[%emt 0:03:24]} Rc8 {[%emt 0:09:08]} 11. Bg5 {[%emt 0:15:52]} d4 {[%emt 0:05:05]} 12. Ne4 {[%emt 0:01:05]} Be7 {[%emt 0:01:15]} 13. Nxf6+ {[%emt 0:00:12]} Bxf6 {[%emt 0:01:32]} 14. Bxf6 {[%emt 0:00:35]} gxf6 {[%emt 0:00:39]} 15. Qd2 {[%emt 0:00:15]} h5 {[%emt 0:17:33]} 16. e3 {[%emt 0:04:24]} h4 {[%emt 0:08:08]} 17. Rfc1 {[%emt 0:05:36]} hxg3 {[%emt 0:08:09]} 18. hxg3 {[%emt 0:00:39]} Ke7 {[%emt 0:11:43]} 19. Rxc8 {[%emt 0:08:58]} Bxc8 {[%emt 0:02:53]} 20. Rc1 {[%emt 0:00:56]} Qd6 {[%emt 0:02:28]} 21. Rc6 {[%emt 0:02:37]} Qd8 {[%emt 0:02:52]} 22. Qb4+ {[%emt 0:00:53]} Ke8 {[%emt 0:01:00]} 23. Rd6 {[%emt 0:02:26]} Bd7 {[%emt 0:04:03]} 24. Bc6 {[%emt 0:01:40]} a5 {[%emt 0:00:43]} 25. Qb7 {[%emt 0:11:38]} 1-0

[Event "Irish Championship 2020"]
[Site "Dublin"]
[Date "2020.08.06"]
[Round "6.8"]
[White "Casey, Eoghan"]
[Black "Putar, Leon"]
[Result "0-1"]
[ECO "A45"]
[WhiteElo "1954"]
[BlackElo "1894"]
[Annotator "RC"]
[PlyCount "64"]
[EventDate "2020.08.01"]
[EventType "swiss"]
[EventCountry "IRL"]
[SourceTitle "playchess.com"]
[Source "ChessBase"]
[SourceQuality "1"]
[TimeControl "8100+35"]

1. d4 {[%emt 0:00:00]} Nf6 {[%emt 0:00:00]} 2. Bf4 {[%emt 0:00:00]} g6 {[%emt 0:00:08]} 3. Nc3 {[%emt 0:00:00]} d5 {[%emt 0:00:26]} 4. e3 {[%emt 0:00:00]} Bg7 {[%emt 0:00:30]} 5. h4 {[%emt 0:00:00]} h5 {[%emt 0:00:44]} 6. Nf3 {[%emt 0:00:17]} O-O {[%emt 0:01:43]} 7. Ne5 {[%emt 0:07:14]} c5 {[%emt 0:04:45]} 8. Be2 {[%emt 0:02:54]} Nc6 {[%emt 0:02:16]} 9. Qd2 {[%emt 0:12:16]} Bf5 {[%emt 0:16:11]} 10. g4 {[%emt 0:08:40]} hxg4 {[%emt 0:02:50]} 11. h5 {[%emt 0:18:05]} Nxh5 {[%emt 0:09:31]} 12. Rxh5 {[%emt 0:12:39]} gxh5 {[%emt 0:02:52]} 13. O-O-O {[%emt 0:21:56]} cxd4 {[%emt 0:03:35]} 14. exd4 {[%emt 0:01:07]} Nxe5 {[%emt 0:18:15]} 15. dxe5 {[%emt 0:07:25]} Rc8 {[%emt 0:07:07]} 16. Bd3 {[%emt 0:13:03]} Bxd3 {[%emt 0:08:25]} 17. Qxd3 {[%emt 0:00:32]} e6 {[%emt 0:00:24]} 18. Rh1 {[%emt 0:04:27]} h4 {[%emt 0:00:59]} 19. Bg3 {[%emt 0:10:19]} Qg5+ {[%emt 0:03:03]} 20. Kb1 {[%emt 0:03:28]} h3 {[%emt 0:00:44]} 21. f3 {[%emt 0:02:30]} f5 {[%emt 0:03:07]} 22. exf6 {[%emt 0:00:47]} Rxf6 {[%emt 0:01:14]} 23. fxg4 {[%emt 0:00:57]} Qxg4 {[%emt 0:01:42]} 24. Rg1 {[%emt 0:07:50]} Rf3 {[%emt 0:06:52]} 25. Qe2 {[%emt 0:02:55]} Rxg3 {[%emt 0:10:08]} 26. Rxg3 {[%emt 0:00:24]} Qxg3 {[%emt 0:00:31]} 27. Qxe6+ {[%emt 0:00:23]} Kh7 {[%emt 0:00:12]} 28. Qf5+ {[%emt 0:00:15]} Kh6 {[%emt 0:00:09]} 29. Qe6+ {[%emt 0:00:31]} Qg6 {[%emt 0:00:54]} 30. Qxh3+ {[%emt 0:00:25]} Qh5 {[%emt 0:00:16]} 31. Qe3+ {[%emt 0:05:08]} Kh7 {[%emt 0:00:20]} 32. Qd3+ {[%emt 0:00:16]} Kh8 {[%emt 0:00:08]} 0-1

[Event "Irish Championship 2020"]
[Site "Dublin"]
[Date "2020.08.06"]
[Round "6.11"]
[White "Collins, Adam"]
[Black "Moran, Darragh"]
[Result "1-0"]
[ECO "A01"]
[WhiteElo "1760"]
[BlackElo "1873"]
[Annotator "NA RC"]
[PlyCount "95"]
[EventDate "2020.08.01"]
[EventType "swiss"]
[EventCountry "IRL"]
[SourceTitle "playchess.com"]
[Source "ChessBase"]
[SourceQuality "1"]
[TimeControl "8100+35"]

{[%evp 8,84,11,-19,-7,-9,0,2,-5,-18,-15,-27,-10,-37,-32,-36,-17,-26,-45,-72,32767,-66,-68,-75,-60,-62,-56,32767,-59,-73,-63,-66,-54,32767,32767,32767,32767,32767,32767,-82,-79,32767,-114,-135,32767,32767,354,393,32767,32767,484,32767,32767,32767,32767,638,599,675,629,459,878,584,654,688,481,529,566,717,557,766,689,32767,608,32767,32767,32767,681,835,915]} 1. b3 {[%emt 2:15:35]} d5 {[%emt 0:18:39]} 2. Bb2 {[%emt 0:00:00]} Bg4 {[%emt 0:00:03]} 3. g3 {[%emt 0:00:00]} Nd7 {[%emt 0:00:23]} 4. Bg2 {[%emt 0:00:00]} Ngf6 {[%emt 0:00:38]} 5. d3 {[%emt 0:00:00]} e5 {[%emt 0:02:27]} 6. Nd2 {[%emt 0:00:00] A01: Nimzowitsch-Larsen Opening.} Bd6 {[%emt 0:00:12] [#]} 7. h3 $146 {[%emt 0:00:00]} ({Predecessor:} 7. c4 c6 8. Qc2 O-O 9. Ngf3 Re8 10. h3 Bxf3 11. exf3 Nc5 12. O-O Qd7 13. d4 exd4 14. Bxd4 {1-0 (27) Leskovar,M (2273)-Fernandez,J (1994) Mar de Ajo 2017}) 7... Be6 {[%emt 0:01:54]} 8. e3 {[%emt 0:00:00]} O-O {[%emt 0:01:06]} 9. Ne2 {[%emt 0:00:00]} Qe7 {[%emt 0:03:16]} 10. a3 {[%emt 0:00:00]} Rfe8 {[%emt 0:02:36]} 11. O-O {[%emt 0:00:00]} Rac8 {[%emt 0:07:30]} 12. Nf3 {[%emt 0:00:00]} c6 {[%emt 0:06:07]} 13. Ng5 {[%emt 0:00:00]} Bf5 {[%emt 0:07:25]} 14. Nf3 {[%emt 0:00:00]} h6 {[%emt 0:07:00]} 15. Re1 {[%emt 0:00:00]} e4 {[%emt 0:07:35]} 16. dxe4 {[%emt 0:00:00]} dxe4 {[%emt 0:03:03]} ({Of course not} 16... Qxe4 $6 17. Nfd4 $14) 17. Ned4 {[%emt 0:00:00]} Bh7 {[%emt 0:06:15]} 18. Nd2 {[%emt 0:00:00]} Ne5 {[%emt 0:01:53]} 19. Qe2 {[%emt 0:00:00]} a6 {[%emt 0:07:48]} 20. b4 {[%emt 0:00:00]} c5 {[%emt 0:05:00]} 21. bxc5 {[%emt 0:00:00]} Rxc5 {[%emt 0:09:46]} 22. a4 {[%emt 0:00:00]} Rc7 {[%emt 0:05:35]} 23. Red1 {[%emt 0:00:00]} Rec8 {[%emt 0:02:20]} 24. a5 {[%emt 0:00:00]} Bb4 {[%emt 0:07:42]} 25. Rdb1 {[%emt 0:00:00]} Qc5 {[%emt 0:15:42]} 26. Ra4 {[%emt 0:02:37]} g5 $2 {[%emt 0:10:34]} (26... Bxd2 $15 {keeps the upper hand.} 27. Qxd2 {[#]} Nf3+ $1 {[%mdl 512]} 28. Nxf3 exf3 29. Bxf6 fxg2) 27. N4b3 {[%emt 0:02:55]} Qxc2 {[%emt 0:04:00]} 28. Rxb4 {[%emt 0:03:58]} Nd3 {[%emt 0:01:19]} 29. Rb6 {[%emt 0:02:00]} Nxb2 {[%emt 0:02:14]} 30. Rxf6 {[%emt 0:01:39]} Nc4 {[%emt 0:01:10]} 31. Rxh6 {[%emt 0:03:32]} Nxd2 {[%emt 0:01:10]} 32. Nxd2 {[%emt 0:00:05]} Rd8 {[%emt 0:00:23]} 33. Rd1 {[%emt 0:01:14]} Rcd7 {[%emt 0:00:44]} (33... Bg6 $142 34. Rxg6+ {[%mdl 64] Remove Defender} fxg6 35. Bxe4 Qb2) 34. Rxh7 {[%emt 0:00:31]} Rxd2 {[%emt 0:00:36]} 35. Rxd2 {[%emt 0:00:13]} Rxd2 {[%emt 0:00:35] [#]} 36. Qh5 $1 {[%emt 0:00:12] Double Attack} Qd1+ {[%emt 0:00:40]} 37. Kh2 {[%emt 0:00:27]} Qxh5 {[%emt 0:00:35]} 38. Rxh5 {[%emt 0:00:02]} f6 {[%emt 0:00:18]} 39. Bxe4 {[%emt 0:00:49]} Rxf2+ {[%emt 0:00:15]} 40. Kg1 {[%emt 0:00:04]} Re2 {[%emt 0:00:54]} 41. Bxb7 {[%emt 0:01:06]} Rxe3 $18 {[%emt 0:00:01]} 42. Bxa6 {[%emt 0:00:36]} Rxg3+ {[%emt 0:00:04]} 43. Kf2 {[%emt 0:00:07]} Ra3 {[%emt 0:00:08]} 44. Bc4+ {[%emt 0:00:04]} Kg7 {[%emt 0:00:38]} 45. a6 {[%emt 0:00:05]} Rc3 {[%emt 0:00:11]} 46. Be2 {[%emt 0:00:34]} Rc8 {[%emt 0:00:18]} 47. Bd3 {[%emt 0:00:25]} Rd8 {[%emt 0:01:33]} 48. a7 {[%emt 0:00:25]} 1-0

[Event "Irish Championship 2020"]
[Site "Dublin"]
[Date "2020.08.07"]
[Round "7.1"]
[White "Daly, Colm"]
[Black "Delaney, Killian"]
[Result "1-0"]
[ECO "D28"]
[WhiteElo "2248"]
[BlackElo "2314"]
[Annotator "ChessBase"]
[PlyCount "79"]
[EventDate "2020.08.01"]
[EventType "swiss"]
[EventCountry "IRL"]
[SourceTitle "playchess.com"]
[Source "ChessBase"]
[SourceQuality "1"]
[TimeControl "8100+35"]

1. d4 {[%emt 0:04:11]} d5 {[%emt 0:08:51]} 2. c4 {[%emt 0:04:36]} dxc4 {[%emt 0:00:48]} 3. Nf3 {[%emt 0:00:30]} Nf6 {[%emt 0:00:13]} 4. e3 {[%emt 0:00:09]} e6 {[%emt 0:00:05]} 5. Bxc4 {[%emt 0:00:06]} a6 {[%emt 0:00:05]} 6. O-O {[%emt 0:03:23]} b5 {[%emt 0:00:26]} 7. Bd3 {[%emt 0:00:12]} Bb7 {[%emt 0:00:09]} 8. a4 {[%emt 0:00:29]} b4 {[%emt 0:00:07]} 9. Qe2 {[%emt 0:01:17]} c5 {[%emt 0:02:39]} 10. Nbd2 {[%emt 0:01:59]} Nbd7 {[%emt 0:02:49]} 11. e4 {[%emt 0:00:38]} cxd4 {[%emt 0:00:57]} 12. e5 {[%emt 0:00:12]} Nd5 {[%emt 0:00:44]} 13. Ne4 {[%emt 0:00:06]} Qc7 {[%emt 0:18:54]} 14. Re1 {[%emt 0:28:13]} Be7 {[%emt 0:24:57]} 15. Neg5 {[%emt 0:31:28]} h6 {[%emt 0:15:08]} 16. Nxe6 {[%emt 0:17:36]} fxe6 {[%emt 0:00:18]} 17. Bg6+ {[%emt 0:00:04]} Kd8 {[%emt 0:00:06]} 18. Nxd4 {[%emt 0:00:16]} Nf8 {[%emt 0:00:16]} 19. Bf7 {[%emt 0:04:52]} Bc5 {[%emt 0:07:03]} 20. Nxe6+ {[%emt 0:00:36]} Nxe6 {[%emt 0:00:03]} 21. Bxe6 {[%emt 0:00:20]} Rf8 {[%emt 0:00:06]} 22. Be3 {[%emt 0:17:47]} Nxe3 {[%emt 0:01:34]} 23. fxe3 {[%emt 0:01:15]} Qxe5 {[%emt 0:00:36]} 24. Rad1+ {[%emt 0:01:37]} Ke8 {[%emt 0:20:00]} 25. Qg4 {[%emt 0:07:26]} Bd6 {[%emt 0:00:59]} 26. Rxd6 {[%emt 0:01:54]} Qxd6 {[%emt 0:00:25]} 27. Rd1 {[%emt 0:00:23]} Qxd1+ {[%emt 0:02:59]} 28. Qxd1 {[%emt 0:00:07]} Rd8 {[%emt 0:00:07]} 29. Qh5+ {[%emt 0:01:41]} Ke7 {[%emt 0:00:09]} 30. Bb3 {[%emt 0:00:41]} Rf6 {[%emt 0:21:44]} 31. Qg4 {[%emt 0:03:18]} Bd5 {[%emt 0:01:12]} 32. Qxb4+ {[%emt 0:02:35]} Kf7 {[%emt 0:00:40]} 33. Qb7+ {[%emt 0:00:13]} Ke6 {[%emt 0:00:05]} 34. Qxa6+ {[%emt 0:02:25]} Ke5 {[%emt 0:01:05]} 35. Qa5 {[%emt 0:01:52]} Rfd6 {[%emt 0:00:22]} 36. h3 {[%emt 0:00:54]} Ke4 {[%emt 0:00:41]} 37. Qb4+ {[%emt 0:00:52]} Kxe3 {[%emt 0:00:17]} 38. Qc3+ {[%emt 0:01:04]} Kf4 {[%emt 0:00:25]} 39. Bxd5 {[%emt 0:00:47]} Rxd5 {[%emt 0:00:02]} 40. Qxg7 {[%emt 0:00:15]} 1-0